[Event "44th Chess Olympiad Women 2022"]
[Site "Chennai"]
[Date "2022.08.03"]
[Round "6.10"]
[White "Paredes Bustamante, Paula Elizab"]
[Black "Antova, Gabriela"]
[Result "1/2-1/2"]
[WhiteElo "2162"]
[BlackElo "2275"]
[Annotator "TA"]
[PlyCount "171"]
[EventDate "2022.??.??"]
[TimeControl "60"]

{[%evp 11,171,39,41,33,46,43,54,0,0,0,11,0,0,0,18,-4,0,0,2,0,0,-42,-41,-29,16,
-52,25,23,26,26,45,31,31,0,0,3,2,2,24,27,18,0,0,0,0,0,0,-22,-17,-98,0,-72,29,
32,216,234,236,212,229,80,84,77,66,0,0,0,17,4,4,8,60,20,20,20,20,21,46,46,46,
46,46,46,46,46,46,46,46,46,46,46,60,60,61,61,61,60,60,60,60,60,61,60,60,58,58,
29,29,29,29,21,21,21,21,21,29,29,29,21,29,21,29,29,29,29,29,29,29,29,29,21,29,
29,29,29,29,29,29,0,29,0,29,0,29,29,29,29,29,0,29,29,29,29,29,29,29,29,29,0,29,
0,29,0]} 1. e4 {[%emt 0:00:02]} e5 {[%emt 0:00:07]} 2. Nf3 {[%emt 0:00:03]} Nc6
{[%emt 0:00:07]} 3. Bb5 {[%emt 0:01:20]} a6 {[%emt 0:00:14]} 4. Ba4 {[%emt 0:
00:00]} d6 {[%emt 0:00:06]} 5. c3 {[%emt 0:06:20]} Bd7 {[%emt 0:00:31]} 6. d4 {
[%emt 0:03:26]} g6 {[%emt 0:00:14]} 7. Bg5 {[%emt 0:02:34] C76: Ruy Lopez:
Deferred Steinitz: 5 c3 Bd7 6 d4 g6.} f6 {[%emt 0:02:54]} 8. Be3 {[%emt 0:00:
00]} Bg7 $1 {[%emt 0:03:48] now scores much better than the old 8... Nh6.} 9.
dxe5 {[%emt 0:03:15]} (9. O-O $14) 9... fxe5 $11 {[%emt 0:04:54] [#]} 10. b4
$146 {[%emt 0:01:52]} ({Avoid the trap} 10. Qb3 $2 b5 11. Bxb5 axb5 $19) ({
Predecessor:} 10. Nbd2 Nh6 11. Bg5 Ne7 12. Bb3 Qc8 13. Nc4 Nf7 14. Bh4 Be6 15.
Ne3 h6 16. Bxe7 Kxe7 17. Bxe6 Qxe6 {1-0 (68) Karttunen,M (2485)-Alavi
Moghaddam,S (2455) Chess.com INT 2021}) 10... Nf6 {[%emt 0:03:39]} 11. Bb3 {
[%emt 0:02:27]} Qe7 {[%emt 0:06:58]} 12. Nbd2 {[%emt 0:08:34]} Nd8 {[%emt 0:00:
00]} 13. Qe2 {[%emt 0:41:04]} Nh5 {[%emt 0:19:49]} 14. g3 {[%emt 0:01:55]
Prevents Nf4.} Ne6 {[%emt 0:03:43]} 15. Qc4 {[%emt 0:02:03]} Nf6 {[%emt 0:00:
00]} 16. h3 {[%emt 0:02:50] Inhibits Ng4.} b5 {[%emt 0:01:58]} 17. Qd3 {
[%emt 0:03:06]} O-O {[%emt 0:02:15]} 18. a4 {[%emt 0:05:40]} (18. O-O $11)
18... Kh8 {[%emt 0:03:30]} (18... c5 $1 $15 19. bxc5 dxc5) 19. O-O {[%emt 0:00:
00]} Qe8 {[%emt 0:10:35][%cal Rb5a4]} 20. axb5 {[%emt 0:01:33]} axb5 {[%emt 0:
00:00]} 21. Kh2 {[%emt 0:01:17]} Qc8 {[%emt 0:03:09]} 22. Ng1 {[%emt 0:01:47]}
Re8 {[%emt 0:01:19]} 23. Ne2 {[%emt 0:00:11]} Qb7 {[%emt 0:01:17]} 24. Rfc1 {
[%emt 0:02:14]} Bc6 {[%emt 0:00:49]} 25. Rxa8 {[%emt 0:01:40]} Qxa8 {[%emt 0:
00:00]} 26. c4 {[%emt 0:00:42]} bxc4 {[%emt 0:03:28]} ({Much less strong is} 
26... Bxe4 27. Nxe4 bxc4 {[#]} 28. Bxc4 $1 $16 (28. Rxc4 d5 $16)) 27. Qxc4 {
[%emt 0:00:04]} Bb7 {[%emt 0:02:11]} 28. Nc3 {[%emt 0:00:15]} c6 {[%emt 0:00:
00] And now ...d5 would win.} 29. Qd3 {[%emt 0:02:16]} d5 {[%emt 0:00:07] [#]
Threatens to win with ...d4.} 30. Bb6 {[%emt 0:00:46]} (30. Nf3 $1 $11) 30...
Ng5 {[%emt 0:01:02]} (30... d4 $17 31. Na4 Ba6) 31. h4 {[%emt 0:02:08]} (31.
Be3 $1 $11 Ne6 32. Nf3) 31... Nf7 {[%emt 0:00:59]} (31... Ne6 $17 {[%cal Ye6d4]
Strongly threatening ...Nd4!} 32. Na4 Ba6) 32. b5 {[%emt 0:00:37]} cxb5 {
[%emt 0:01:42]} (32... Rc8 $14) 33. Nxd5 $18 {[%emt 0:00:14]} Nxd5 {[%emt 0:00:
00]} 34. Bxd5 {[%emt 0:00:19]} Bxd5 {[%emt 0:00:57]} 35. Qxd5 {[%emt 0:00:33]}
(35. exd5 $18 Nd6 36. Rc6) 35... Qxd5 $16 {[%emt 0:00:30]} 36. exd5 {[%emt 0:
00:00]} Bh6 {[%emt 0:00:10]} 37. Rc2 {[%emt 0:00:50] White is more active.} ({
White should play} 37. Rc7 $1 $14 Bxd2 38. Rxf7) 37... Bxd2 $11 {[%emt 0:00:19]
} 38. Rxd2 {[%emt 0:00:02] Endgame KRB-KRN} Nd6 {[%emt 0:00:10] White must now
prevent ...Nc4.} 39. Bc7 {[%emt 0:01:20]} Nc4 {[%emt 0:00:22]} 40. Rd3 {
[%emt 0:01:09] Hoping for d6.} e4 {[%emt 0:01:53]} ({Black should try} 40...
Re7 $1 $11 41. d6 Rd7) 41. Rb3 {[%emt 0:05:53]} (41. Rd4 $5 {[%cal Rd5d6]} Re7
42. Bf4 $16) 41... Re7 $1 {[%emt 0:03:59]} 42. d6 {[%emt 0:03:36]} Rd7 {
[%emt 0:01:16]} 43. Rxb5 {[%emt 0:00:39]} Nxd6 {[%emt 0:00:43]} 44. Bxd6 {
[%emt 0:00:03]} Rxd6 {[%emt 0:00:04] KR-KR} 45. Re5 {[%emt 0:02:49]} Rd4 {
[%emt 0:03:03]} 46. Re7 {[%emt 0:00:03]} h5 {[%emt 0:04:06]} 47. Kg2 {[%emt 0:
00:00]} Kg8 {[%emt 0:00:06]} 48. Kf1 $1 {[%emt 0:01:01]} Kf8 {[%emt 0:00:06]}
49. Rb7 {[%emt 0:03:04]} Rd2 {[%emt 0:03:41]} 50. Rb4 {[%emt 0:01:12]} Kf7 {
[%emt 0:00:16]} 51. Rxe4 {[%emt 0:00:05]} Kf6 {[%emt 0:00:09]} 52. Rf4+ {
[%emt 0:00:05]} Kg7 {[%emt 0:02:17]} 53. Kg2 {[%emt 0:00:05]} Ra2 {[%emt 0:00:
00]} 54. Rb4 {[%emt 0:01:44]} Kf6 {[%emt 0:00:30]} 55. Kf3 {[%emt 0:00:42]} Rc2
{[%emt 0:00:39]} 56. Ke3 {[%emt 0:00:27]} Ra2 {[%emt 0:00:19]} 57. f3 {[%emt 0:
00:00]} Ra5 {[%emt 0:01:07]} 58. g4 {[%emt 0:03:01]} hxg4 {[%emt 0:00:11]} 59.
fxg4 {[%emt 0:00:02]} Ra1 {[%emt 0:03:45]} 60. Rb6+ {[%emt 0:02:23]} Kg7 {
[%emt 0:00:19]} 61. Rd6 {[%emt 0:03:17]} Ra3+ {[%emt 0:03:13]} 62. Ke4 {
[%emt 0:00:09]} Ra4+ {[%emt 0:03:49]} 63. Rd4 {[%emt 0:00:06]} Ra5 {[%emt 0:00:
00]} 64. Kf4 {[%emt 0:00:14]} Rb5 {[%emt 0:00:38]} 65. Rc4 {[%emt 0:01:10]} Ra5
{[%emt 0:01:07]} 66. Rc7+ {[%emt 0:00:05]} Kf6 {[%emt 0:00:36]} 67. Rc6+ {
[%emt 0:01:13]} Kg7 {[%emt 0:00:19]} 68. Re6 {[%emt 0:00:21]} Ra4+ {[%emt 0:00:
00]} 69. Re4 {[%emt 0:00:07]} Ra6 {[%emt 0:00:19]} 70. Rd4 {[%emt 0:02:53]} Kf6
{[%emt 0:00:36]} 71. Rb4 {[%emt 0:01:48]} Ra5 {[%emt 0:00:48]} 72. Rb6+ {
[%emt 0:02:52]} Kf7 {[%emt 0:00:38]} 73. Rd6 {[%emt 0:00:29]} Rb5 {[%emt 0:00:
00]} 74. Rd4 {[%emt 0:01:53]} Ra5 {[%emt 0:00:09]} 75. Ke4 {[%emt 0:00:48]} Ke6
{[%emt 0:00:43]} 76. Kf4 {[%emt 0:00:01]} Kf7 {[%emt 0:00:13]} 77. Re4 {
[%emt 0:00:05]} Kf6 {[%emt 0:00:19]} 78. Rb4 {[%emt 0:01:17]} Kf7 {[%emt 0:00:
00]} 79. Re4 {[%emt 0:00:01]} Kf6 {[%emt 0:00:08]} 80. g5+ {[%emt 0:00:39]} Kf7
{[%emt 0:00:27]} 81. Rb4 {[%emt 0:01:07]} Rc5 {[%emt 0:01:46]} 82. Rb7+ {
[%emt 0:02:56]} Ke6 {[%emt 0:00:28]} 83. Rb6+ {[%emt 0:00:08]} Kf7 {[%emt 0:00:
00]} 84. Rb7+ {[%emt 0:00:19]} Ke6 {[%emt 0:00:05]} 85. Rb6+ {[%emt 0:00:03]}
Kf7 {[%emt 0:00:07]} 86. Rb7+ {[%emt 0:01:01] Weighted Error Value: White=0.16
(very precise) /Black=0.18 (very precise)} 1/2-1/2

[Event "44th Chess Olympiad Women 2022"]
[Site "Chennai"]
[Date "2022.08.03"]
[Round "6.11"]
[White "Calzetta Ruiz, Monica"]
[Black "Fredericia, Louise"]
[Result "1-0"]
[WhiteElo "2230"]
[BlackElo "1990"]
[Annotator "TA"]
[PlyCount "61"]
[EventDate "2022.??.??"]
[TimeControl "60"]

{[%evp 12,61,16,6,8,0,31,42,27,31,101,98,102,74,71,66,99,79,100,89,74,0,0,0,84,
59,144,53,120,0,185,137,96,0,-20,-161,-166,-358,-359,-324,-325,-553,-525,-527,
-483,-608,29996,29997,29997,29992,29998,29999]} 1. e4 {[%emt 0:00:04]} c5 {
[%emt 0:00:12]} 2. Nf3 {[%emt 0:00:11]} Nc6 {[%emt 0:00:09]} 3. d4 {[%emt 0:00:
00]} cxd4 {[%emt 0:00:07]} 4. Nxd4 {[%emt 0:00:06]} g6 {[%emt 0:00:15]} 5. Nc3
{[%emt 0:00:25]} Bg7 {[%emt 0:00:09]} 6. Be3 {[%emt 0:00:21]} Nf6 {[%emt 0:00:
00]} 7. Nb3 {[%emt 0:00:10]} O-O {[%emt 0:05:28][%cal Yd7d5] B34: Sicilian:
Accelerated Dragon with 5 Nc3: sidelines.} 8. Qd2 {[%emt 0:00:14] [#] Against
d5} d5 $146 {[%emt 0:05:30]} ({Predecessor:} 8... a5 9. a4 Nb4 10. O-O-O d5 11.
f3 e6 12. g4 Bd7 13. Bd4 dxe4 14. fxe4 e5 15. Bxe5 Bxg4 16. Qxd8 Rfxd8 17.
Rxd8+ Rxd8 {0-1 (41) Vega Gutierrez,S (2394)-Sebag,M (2447) Terme Catez 2021})
9. exd5 {[%emt 0:03:25]} Nb4 {[%emt 0:00:29] White is slightly better.} 10. Rd1
{[%emt 0:00:46] Threatens to win with a3.} b6 {[%emt 0:04:53]} (10... Bf5 $14
11. Nd4 Bc8) 11. a3 $16 {[%emt 0:06:26]} Na6 {[%emt 0:00:09]} 12. Be2 {[%emt 0:
00:00]} Bb7 {[%emt 0:02:42]} 13. O-O {[%emt 0:01:17]} Qd7 {[%emt 0:01:05]} 14.
Rfe1 {[%emt 0:14:50]} Rfd8 {[%emt 0:03:20]} 15. Bb5 {[%emt 0:15:02]} Qc8 {
[%emt 0:03:23]} 16. Bd4 {[%emt 0:12:04]} (16. Bxa6 $16 Bxa6 17. Bh6) 16... Nc7
$11 {[%emt 0:08:52]} 17. Bc4 {[%emt 0:22:10]} (17. Rxe7 Nxb5 18. Nxb5 Nxd5 $17)
17... b5 {[%emt 0:12:33]} (17... Ncxd5 $11 {keeps the balance.} 18. Qe2 e6) 18.
Nxb5 {[%emt 0:00:55]} Ncxd5 {[%emt 0:02:45]} (18... Nxb5 $14 19. Bxb5 Rxd5) 19.
Nc5 {[%emt 0:03:19]} (19. Na5 $16) 19... Bc6 $14 {[%emt 0:15:51]} 20. b4 {
[%emt 0:01:44] White is much more active.} (20. a4 $1 $16) 20... Qg4 $2 {
[%emt 0:14:25]} (20... Nb6 $11 {and Black is okay.} 21. Qe2 Nxc4 22. Bxf6 Bxb5
23. Bxg7 Nxa3) 21. h3 {[%emt 0:00:36]} (21. f3 $18 Qh4 22. Qe2) 21... Qh4 $16 {
[%emt 0:00:53]} 22. Bxf6 {[%emt 0:07:04]} ({Better is} 22. Bf1 $16) 22... Bxf6
$11 {[%emt 0:04:21]} 23. Re4 {[%emt 0:00:32] [#]} ({Of course not} 23. Bxd5
Rxd5 24. Qxd5 Bxd5 25. Rxd5 Qc4 $17) (23. Ne4 $11 {and White has nothing to
worry.}) 23... Nf4 $1 $19 {[%emt 0:02:44] Pin} 24. Qxd8+ {[%emt 0:00:00]} (24.
Bd3 Bxe4 25. Nxe4) 24... Rxd8 {[%emt 0:00:17]} 25. Rxd8+ {[%emt 0:00:00]} Kg7 {
[%emt 0:00:09] ...Qg5 is the strong threat.} 26. g3 $2 {[%emt 0:00:00]} (26.
Bf1 {was the only chance.} Nxh3+ 27. gxh3 Bxe4 28. Nxe4 Qxe4 29. Rd3) 26...
Nxh3+ {[%emt 0:01:38]} 27. Kf1 {[%emt 0:00:04]} Qh6 {[%emt 0:00:35] aiming for
...Qc1+.} 28. Nd4 {[%emt 0:01:24][%cal Yb5d4,Yd4e6,Ye6g5]} Bxe4 $4 {[%emt 0:03:
13] A strong pair of Bishops.} (28... Qc1+ $19 29. Re1 {[#]} Bg2+ $1 30. Kxg2
Qxe1) 29. Nce6+ {[%emt 0:00:09] White mates.} fxe6 {[%emt 0:00:33]} 30. Nxe6+ {
[%emt 0:00:01]} Kf7 {[%emt 0:00:00]} 31. Ng5+ {[%emt 0:00:07] Discovered
Attack (Double check), Double Attack. Quite a comeback for White. Weighted
Error Value: White=0.64/ Black=0.64} 1-0

[Event "44th Chess Olympiad Women 2022"]
[Site "Chennai"]
[Date "2022.08.03"]
[Round "6.11"]
[White "Matnadze, Ana"]
[Black "Guindy, Esmat Susanne"]
[Result "1-0"]
[WhiteElo "2406"]
[BlackElo "2097"]
[Annotator "TA"]
[PlyCount "97"]
[EventDate "2022.??.??"]
[TimeControl "60"]

{[%evp 18,97,12,0,4,-17,0,-26,7,7,20,0,14,12,31,34,56,50,47,35,44,25,29,22,35,
29,65,72,70,48,46,58,60,0,0,0,-1,-12,0,0,0,0,61,55,41,50,134,100,118,77,128,
132,175,177,216,59,57,91,268,278,408,407,512,720,1291,1243,1256,1225,1153,1107,
5210,2718,1679,1592,29982,29983,29983,29984,29984,29985,29984,29985]} 1. d4 {
[%emt 0:00:03]} d5 {[%emt 0:00:07]} 2. Nf3 {[%emt 0:00:06]} Nf6 {[%emt 0:00:09]
} 3. g3 {[%emt 0:00:04]} Bf5 {[%emt 0:00:22]} 4. Bg2 {[%emt 0:00:06]} c6 {
[%emt 0:00:48]} 5. O-O {[%emt 0:00:17]} e6 {[%emt 0:02:04]} 6. c4 {[%emt 0:00:
00]} Be7 {[%emt 0:00:24]} 7. Nc3 {[%emt 0:00:16]} h6 {[%emt 0:05:01]} 8. Nd2 {
[%emt 0:01:50]} O-O {[%emt 0:03:14]} 9. b3 {[%emt 0:02:06]} Nbd7 {[%emt 0:00:
00]} 10. Bb2 {[%emt 0:00:44]} a5 {[%emt 0:07:09] D11: Slav Defence: 3 Nf3
sidelines and 3...Nf6 4 e3 Bg4.} 11. a4 {[%emt 0:06:55] [#]} Rc8 $146 {[%emt 0:
00:00]} ({Predecessor:} 11... Qb6 12. e4 dxe4 13. Ncxe4 Nxe4 14. Nxe4 Nf6 15.
Re1 Rfd8 16. Bc3 Rd7 17. Ra2 Bxe4 18. Bxe4 Nxe4 19. Rxe4 Bf6 {½-½ (21)
Tejero Royo,F (1989)-Lluverol Torrents,S (2001) Vila Seca 2016}) 12. h3 {
[%emt 0:05:04]} Ne8 {[%emt 0:03:00] Black has an edge.} 13. Rc1 {[%emt 0:02:07]
} Bh7 {[%emt 0:02:03]} 14. e3 {[%emt 0:04:52]} f5 {[%emt 0:04:27]} 15. Nf3 {
[%emt 0:02:39]} Ndf6 {[%emt 0:01:00]} 16. Ne5 {[%emt 0:00:24]} Ne4 {[%emt 0:00:
00]} 17. Ne2 {[%emt 0:01:57]} g5 $1 {[%emt 0:02:31]} 18. f3 {[%emt 0:01:10]}
N4d6 {[%emt 0:04:20]} 19. Bc3 {[%emt 0:02:47][%cal Yh3h4,Yb2c3,Yc3b4,Yb4c5]}
Nf7 {[%emt 0:01:05]} 20. Nd3 {[%emt 0:01:16]} b6 {[%emt 0:08:27]} 21. Qd2 {
[%emt 0:01:26]} Ned6 {[%emt 0:05:12]} 22. c5 {[%emt 0:01:33]} Nb7 {[%emt 0:00:
11][%cal Rb6c5]} 23. b4 {[%emt 0:04:40]} (23. cxb6 {feels hotter.} Qxb6 24. h4
gxh4 25. gxh4 Bxh4 26. Nef4) 23... axb4 {[%emt 0:01:11]} 24. Bxb4 {[%emt 0:00:
11]} bxc5 {[%emt 0:03:29]} 25. Nxc5 {[%emt 0:00:30]} (25. dxc5 $14 e5 26. f4)
25... Nxc5 $11 {[%emt 0:00:13]} 26. Bxc5 {[%emt 0:00:16]} Nd6 {[%emt 0:01:39]}
27. Qa2 {[%emt 0:03:52]} Nc4 {[%emt 0:00:56]} 28. Rxc4 {[%emt 0:00:33]} dxc4 {
[%emt 0:00:07]} 29. Qxc4 {[%emt 0:00:05]} Rf7 {[%emt 0:00:00]} (29... Bxc5 $11
30. Qxe6+ Rf7 31. dxc5 Qe8 32. Qxe8+ Rxe8) 30. f4 $1 $14 {[%emt 0:02:42]} Bxc5
{[%emt 0:00:16]} 31. dxc5 {[%emt 0:00:32]} Qe8 {[%emt 0:04:26]} (31... Bg6 $14)
32. a5 {[%emt 0:09:29][%cal Ya4a5,Ya5a6] White has strong compensation.} Bg6 {
[%emt 0:03:10]} 33. a6 {[%emt 0:00:00]} Ra7 {[%emt 0:00:28]} (33... e5 $142)
34. Nd4 $16 {[%emt 0:05:14] White is more active.} Bf7 {[%emt 0:03:06] [#] And
now ...e5 would win.} 35. Qa4 {[%emt 0:01:13]} Qf8 {[%emt 0:01:50]} 36. Rc1 $2
{[%emt 0:08:26]} (36. Bxc6 Qxc5 37. Bb7 Rc7 $11) (36. Nxc6 $18 Rac7 37. a7)
36... Rca8 {[%emt 0:01:24]} 37. Bf1 {[%emt 0:01:32]} ({Don't play} 37. Qxc6
Rxa6 38. Qb5 Ra5 $11) 37... Qc8 {[%emt 0:08:15] A mistake that costs the game.}
(37... Qg7 $16) 38. Qxc6 $18 {[%emt 0:05:27]} ({Weaker is} 38. Nxc6 Rc7 $14)
38... Qd8 {[%emt 0:04:14]} (38... gxf4 {might work better.} 39. Qxc8+ (39. exf4
Qd8 $16) 39... Rxc8 40. exf4 Be8) 39. Qb6 {[%emt 0:03:22] [#] Qxd8+ is the
strong threat.} Qd7 {[%emt 0:04:35]} 40. c6 {[%emt 0:07:56]} Qd6 {[%emt 0:02:
19]} 41. Nb5 {[%emt 0:00:00][%csl Ya7,Yd6][%cal Yd4b5,Yb5a7,Ya7c8]} Qd2 {
[%emt 0:31:40]} 42. Nxa7 {[%emt 0:02:43]} Qxc1 {[%emt 0:00:33]} 43. c7 {
[%emt 0:00:25]} e5 {[%emt 0:00:00]} 44. c8=Q+ {[%emt 0:00:00]} Rxc8 {[%emt 0:
00:00]} 45. Nxc8 {[%emt 0:00:00]} Bc4 {[%emt 0:00:00]} 46. Qd8+ {[%emt 0:00:00]
White mates.} Kg7 {[%emt 0:00:00]} 47. Qc7+ {[%emt 0:00:00]} Kh8 {[%emt 0:00:
00]} 48. Qxc4 {[%emt 0:00:00]} Qxe3+ {[%emt 0:00:00]} 49. Kh1 {[%emt 0:00:00]
Weighted Error Value: White=0.20 (precise) /Black=0.42} 1-0

[Event "44th Chess Olympiad Women 2022"]
[Site "Chennai"]
[Date "2022.08.03"]
[Round "6.11"]
[White "Nilssen, Ellen Fredericia"]
[Black "Vega Gutierrez, Sabrina"]
[Result "0-1"]
[WhiteElo "2142"]
[BlackElo "2366"]
[Annotator "RC"]
[PlyCount "86"]
[EventDate "2022.??.??"]
[TimeControl "60"]

1. d4 {[%emt 0:00:09]} d5 {[%emt 0:00:07]} 2. c4 {[%emt 0:00:21]} e6 {[%emt 0:
00:00]} 3. Nc3 {[%emt 0:00:08]} Nf6 {[%emt 0:00:15]} 4. cxd5 {[%emt 0:00:20]}
exd5 {[%emt 0:00:07]} 5. Bg5 {[%emt 0:00:08]} Be7 {[%emt 0:00:08]} 6. e3 {
[%emt 0:00:15]} c6 {[%emt 0:00:11]} 7. Bd3 {[%emt 0:00:08]} Nbd7 {[%emt 0:00:
00]} 8. h3 {[%emt 0:00:39]} Nf8 {[%emt 0:00:32]} 9. Nf3 {[%emt 0:03:04]} Ne6 {
[%emt 0:00:16]} 10. Bh4 {[%emt 0:00:10]} O-O {[%emt 0:00:38]} 11. Qc2 {[%emt 0:
00:00]} g6 {[%emt 0:00:19]} 12. O-O-O {[%emt 0:04:49]} b5 {[%emt 0:04:06]} 13.
Kb1 {[%emt 0:05:58]} Bd7 {[%emt 0:04:01]} 14. Ne5 {[%emt 0:03:36]} Rc8 {
[%emt 0:17:24]} 15. f4 {[%emt 0:04:47]} b4 {[%emt 0:03:19]} 16. Na4 {[%emt 0:
00:00]} c5 {[%emt 0:01:02]} 17. Nxc5 {[%emt 0:11:32]} Nxc5 {[%emt 0:01:21]} 18.
dxc5 {[%emt 0:00:44]} Rxc5 {[%emt 0:01:26]} 19. Qe2 {[%emt 0:03:26]} b3 {
[%emt 0:35:48]} 20. axb3 {[%emt 0:00:57]} Nh5 {[%emt 0:14:32]} 21. Bxe7 {
[%emt 0:13:59]} Qxe7 {[%emt 0:00:04]} 22. Qf3 {[%emt 0:00:12]} Rb8 {[%emt 0:00:
00]} 23. Rc1 {[%emt 0:11:26]} Rxb3 {[%emt 0:02:31]} 24. Rxc5 {[%emt 0:02:13]}
Qxc5 {[%emt 0:00:03]} 25. Bc2 {[%emt 0:02:53]} Rb7 {[%emt 0:03:12]} 26. Nxd7 {
[%emt 0:06:06]} Qa3 {[%emt 0:04:30]} 27. b3 {[%emt 0:00:17]} Rxd7 {[%emt 0:00:
00]} 28. Qe2 {[%emt 0:06:32]} Re7 {[%emt 0:03:36]} 29. Qd3 {[%emt 0:03:30]} Qc5
{[%emt 0:00:07]} 30. Rd1 {[%emt 0:04:16]} Rxe3 {[%emt 0:00:04]} 31. Qxd5 {
[%emt 0:00:15]} Qxd5 {[%emt 0:00:02]} 32. Rxd5 {[%emt 0:00:10]} Nxf4 {[%emt 0:
00:00]} 33. Rd8+ {[%emt 0:04:29]} Kg7 {[%emt 0:00:02]} 34. b4 {[%emt 0:00:34]}
Re7 {[%emt 0:00:54]} 35. Rd2 {[%emt 0:00:29]} Rb7 {[%emt 0:00:51]} 36. Rd4 {
[%emt 0:00:24]} Ne6 {[%emt 0:00:15]} 37. Rc4 {[%emt 0:00:41]} a5 {[%emt 0:00:
00]} 38. Kc1 {[%emt 0:03:46]} Rxb4 {[%emt 0:00:12]} 39. Rxb4 {[%emt 0:01:11]}
axb4 {[%emt 0:00:03]} 40. Kd2 {[%emt 0:00:44]} f5 {[%emt 0:01:05]} 41. Ke3 {
[%emt 0:01:31]} Kf6 {[%emt 0:00:40]} 42. Bb3 {[%emt 0:00:08]} Ke5 {[%emt 0:00:
00]} 43. g3 {[%emt 0:00:12]} g5 {[%emt 0:00:45]} 0-1